[Event "GER-ch Youth U14 2020"]
[Site "Willingen"]
[Date "2020.10.21"]
[Round "2.19"]
[White "Wiedersich, Hendryk"]
[Black "Klühs, Gustaf"]
[Result "0-1"]
[ECO "C07"]
[WhiteElo "1570"]
[BlackElo "1827"]
[Annotator "NA RC"]
[PlyCount "54"]
[EventDate "2020.10.20"]
[EventType "swiss"]
[EventRounds "7"]
[EventCountry "GER"]
[SourceTitle "playchess.com"]
[Source "ChessBase"]
[SourceQuality "1"]
[TimeControl "40/5400+30:1800+30"]

{[%evp 9,52,-33,2,-48,18,-17,-6,-33,-7,-47,-46,-51,-46,-129,-38,-41,-43,32767,0,0,0,0,0,0,-7,0,-7,0,0,32767,0,32767,32767,32767,32767,32767,-27,-123,32767,32767,32767,32767,32767,-882,-569]} 1. e4 {[%emt 0:00:00]} e6 {[%emt 0:00:00]} 2. d4 {[%emt 0:00:00]} d5 {[%emt 0:00:00]} 3. Nd2 {[%emt 0:00:00]} c5 {[%emt 0:00:48]} 4. c3 {[%emt 0:00:45]} Nc6 {[%emt 0:01:54]} 5. Ne2 {[%emt 0:01:16]} Be7 {[%emt 0:04:14]} 6. e5 {[%emt 0:09:18] C07: French Tarrasch: 3...c5, 4 Ngf3 and 4 exd5 Qxd5.} Nh6 {[%emt 0:10:43]} 7. f4 {[%emt 0:04:22]} Nf5 {[%emt 0:06:46]} 8. Nf3 {[%emt 0:02:45]} Qb6 {[%emt 0:05:53] [#]} 9. h4 $146 {[%emt 0:13:49]} ({Predecessor:} 9. g4 Nh4 10. Kf2 cxd4 11. cxd4 Bd7 12. Bh3 Rc8 13. Nxh4 Bxh4+ 14. Kg2 f6 15. g5 fxg5 16. fxg5 {0-1 (28) Monteiro,T (1292)-Pinho,P (2179) Guimaraes 2017}) 9... h5 {[%emt 0:01:55]} 10. g3 {[%emt 0:05:15]} cxd4 {[%emt 0:10:30]} 11. Nfxd4 {[%emt 0:00:29] [#]} (11. cxd4 $15 Bd7 12. Bh3) 11... Ncxd4 {[%emt 0:05:28]} (11... Bc5 $1 $17 12. Nxf5 Bf2+ 13. Kd2 exf5) 12. cxd4 {[%emt 0:00:32]} Bd7 {[%emt 0:12:46]} 13. Bh3 {[%emt 0:07:22]} Bb5 {[%emt 0:01:35]} 14. Bxf5 $1 {[%emt 0:03:17]} Bxe2 {[%emt 0:00:31]} 15. Qxe2 {[%emt 0:00:34]} exf5 {[%emt 0:00:06]} 16. Be3 {[%emt 0:00:44]} Rc8 {[%emt 0:01:22]} 17. Kf2 {[%emt 0:01:08]} g6 {[%emt 0:00:35]} 18. Rhc1 {[%emt 0:03:40]} Kd7 {[%emt 0:00:17]} 19. a3 {[%emt 0:06:37]} Qb3 {[%emt 0:08:26]} 20. Rxc8 {[%emt 0:05:33]} Rxc8 {[%emt 0:00:13]} 21. Rc1 {[%emt 0:00:10]} Rxc1 {[%emt 0:00:10]} 22. Bxc1 {[%emt 0:00:12]} Kc6 {[%emt 0:01:43]} 23. Qe3 {[%emt 0:08:11]} (23. Kg2 $15) 23... Qc2+ {[%emt 0:00:33]} 24. Qd2 {[%emt 0:00:11]} Qxd2+ {[%emt 0:00:18]} 25. Bxd2 {[%emt 0:00:14]} Kb5 {[%emt 0:00:16]} 26. Bc3 $19 {[%emt 0:05:47]} Kc4 {[%emt 0:00:07]} 27. a4 {[%emt 0:00:29]} Bb4 {[%emt 0:00:21]} 0-1

[Event "GER-ch Youth U14 2020"]
[Site "Willingen"]
[Date "2020.10.21"]
[Round "2.21"]
[White "Meuer, David"]
[Black "Sallandt, Frido"]
[Result "1/2-1/2"]
[ECO "C18"]
[WhiteElo "1632"]
[BlackElo "1770"]
[Annotator "NA RC"]
[PlyCount "116"]
[EventDate "2020.10.20"]
[EventType "swiss"]
[EventRounds "7"]
[EventCountry "GER"]
[SourceTitle "playchess.com"]
[Source "ChessBase"]
[SourceQuality "1"]
[TimeControl "40/5400+30:1800+30"]

1. e4 {[%emt 0:00:00]} e6 {[%emt 0:00:00]} 2. d4 {[%emt 0:00:00]} d5 {[%emt 0:00:00]} 3. Nc3 {[%emt 0:00:00]} Bb4 {[%emt 0:00:00]} 4. e5 {[%emt 0:00:00]} c5 {[%emt 0:00:05]} 5. a3 {[%emt 0:00:00]} Bxc3+ {[%emt 0:00:05]} 6. bxc3 {[%emt 0:00:02]} Ne7 {[%emt 0:00:09]} 7. Qg4 {[%emt 0:00:10]} Qc7 {[%emt 0:00:24]} 8. Bd3 {[%emt 0:04:34]} cxd4 {[%emt 0:02:35]} 9. Bb5+ {[%emt 0:20:44]} Bd7 {[%emt 0:05:01]} 10. Bxd7+ {[%emt 0:00:51]} Nxd7 {[%emt 0:00:06]} 11. Qxd4 {[%emt 0:00:59]} Qxe5+ {[%emt 0:02:42]} 12. Ne2 {[%emt 0:04:26]} Qxd4 {[%emt 0:03:25]} 13. cxd4 {[%emt 0:01:22]} Rc8 {[%emt 0:00:31]} 14. c3 {[%emt 0:01:04]} Nc6 {[%emt 0:01:39]} 15. O-O {[%emt 0:02:31]} O-O {[%emt 0:01:57]} 16. Rd1 {[%emt 0:08:26]} Na5 {[%emt 0:00:52]} 17. Bf4 {[%emt 0:01:44]} Rc6 {[%emt 0:01:20]} 18. Rdb1 {[%emt 0:01:59]} Rfc8 {[%emt 0:01:40]} 19. Rb5 {[%emt 0:14:48]} b6 {[%emt 0:02:29]} 20. f3 {[%emt 0:08:37]} Nc4 {[%emt 0:03:25]} 21. Kf2 {[%emt 0:09:01]} a6 {[%emt 0:01:41]} 22. Rbb1 {[%emt 0:00:43]} b5 {[%emt 0:01:01]} 23. a4 {[%emt 0:02:40]} bxa4 {[%emt 0:00:52]} 24. Rxa4 {[%emt 0:00:30]} a5 {[%emt 0:00:12]} 25. Ra2 {[%emt 0:03:25]} Ndb6 {[%emt 0:00:43]} 26. h4 {[%emt 0:03:57]} a4 {[%emt 0:01:49]} 27. Bc1 {[%emt 0:03:26]} Ra8 {[%emt 0:04:09]} 28. Ba3 {[%emt 0:00:33]} Nxa3 {[%emt 0:01:39]} 29. Rxa3 {[%emt 0:00:06]} Nd7 {[%emt 0:10:56]} 30. Rb4 {[%emt 0:01:43]} Rca6 {[%emt 0:00:44]} 31. Nc1 {[%emt 0:01:31]} Nb6 {[%emt 0:00:59]} 32. Nd3 {[%emt 0:01:25]} Nd7 {[%emt 0:13:29]} 33. Nb2 {[%emt 0:01:31]} Nb6 {[%emt 0:07:19]} 34. Nd3 {[%emt 0:00:09]} Nc4 {[%emt 0:03:49]} 35. Nc5 {[%emt 0:00:52]} Nxa3 {[%emt 0:04:19]} 36. Nxa6 {[%emt 0:00:11]} g6 {[%emt 0:01:27]} 37. Nc5 {[%emt 0:02:12]} Nc4 {[%emt 0:01:04]} 38. Nxa4 {[%emt 0:01:12]} Na3 {[%emt 0:05:22]} 39. Nc5 {[%emt 0:01:07]} Nc4 {[%emt 0:00:34]} 40. Ra4 {[%emt 0:00:54]} Rxa4 {[%emt 0:00:37]} 41. Nxa4 {[%emt 0:30:06]} Nd6 {[%emt 0:30:20]} 42. Nb2 {[%emt 0:00:00]} h5 {[%emt 0:00:00]} 43. g3 {[%emt 0:00:00]} f6 {[%emt 0:00:00]} 44. Nd1 {[%emt 0:00:00]} Kf7 {[%emt 0:00:00]} 45. Ne3 {[%emt 0:00:00]} Nb5 {[%emt 0:00:00]} 46. Nd1 {[%emt 0:00:00]} Ke7 {[%emt 0:00:00]} 47. Ke2 {[%emt 0:00:00]} e5 {[%emt 0:00:00]} 48. Kd3 {[%emt 0:00:00]} Ke6 {[%emt 0:00:00]} 49. Nf2 {[%emt 0:00:00]} Nd6 {[%emt 0:00:00]} 50. dxe5 {[%emt 0:00:00]} fxe5 {[%emt 0:00:00]} 51. g4 {[%emt 0:00:00]} hxg4 {[%emt 0:00:00]} 52. fxg4 {[%emt 0:00:14]} e4+ {[%emt 0:00:00]} 53. Ke2 {[%emt 0:00:53]} Ke5 {[%emt 0:00:00]} 54. h5 {[%emt 0:00:17]} gxh5 {[%emt 0:00:00]} 55. gxh5 {[%emt 0:00:08]} Kf5 {[%emt 0:00:00]} 56. h6 {[%emt 0:00:42]} Kg6 {[%emt 0:00:00]} 57. Ng4 {[%emt 0:00:39]} Nf5 {[%emt 0:01:23]} 58. h7 {[%emt 0:01:45]} Kxh7 {[%emt 0:00:17]} 1/2-1/2

[Event "GER-ch Youth U14 2020"]
[Site "Willingen"]
[Date "2020.10.21"]
[Round "2.22"]
[White "Fuhrmann, Bahne"]
[Black "Englert, Luca"]
[Result "1-0"]
[ECO "B09"]
[WhiteElo "1816"]
[BlackElo "1530"]
[Annotator "NA RC"]
[PlyCount "143"]
[EventDate "2020.10.20"]
[EventType "swiss"]
[EventRounds "7"]
[EventCountry "GER"]
[SourceTitle "playchess.com"]
[Source "ChessBase"]
[SourceQuality "1"]
[TimeControl "40/5400+30:1800+30"]

{[%evp 8,125,40,29,79,89,95,32767,149,133,166,32767,180,209,258,228,342,235,250,183,258,259,286,138,172,196,258,223,247,218,32767,32767,1201,962,32767,596,592,447,32767,872,838,888,831,880,32767,728,658,770,812,850,790,812,758,833,933,997,957,985,1200,-35,32767,32767,32767,32767,32767,-59,-37,-36,32767,-35,32767,32767,32767,0,35,32767,37,28,30,18,8,8,567,580,599,32767,639,656,661,694,731,712,763,710,32767,768,841,671,674,1515,720,855,1671,631,681,941,604,-28000,1840,2759,32767,32767,32767,32767,32767,32767,32767,32767,32767,29974]} 1. e4 {[%emt 0:00:00]} d6 {[%emt 0:00:00]} 2. d4 {[%emt 0:00:00]} Nf6 {[%emt 0:00:00]} 3. Nc3 {[%emt 0:00:00]} g6 {[%emt 0:00:00]} 4. f4 {[%emt 0:00:00]} Bg7 {[%emt 0:00:00]} 5. Nf3 {[%emt 0:00:40]} Bg4 {[%emt 0:00:00]} 6. h3 {[%emt 0:01:06]} Bxf3 {[%emt 0:00:05]} 7. Qxf3 {[%emt 0:01:51]} c6 {[%emt 0:01:19]} ({Better is} 7... Nc6) 8. Be3 {[%emt 0:03:05]} e5 {[%emt 0:01:21] [#] B09: Pirc Defence: Austrian Attack.} 9. f5 $146 {[%emt 0:05:02]} ({Predecessor:} 9. dxe5 dxe5 10. Rd1 Qe7 11. f5 Nbd7 12. Bc4 a5 13. Bb3 b5 14. a3 Nc5 15. Bxc5 Qxc5 16. fxg6 fxg6 {1-0 (35) Stijve,N (1685)-Cwiek,R (1682) Mureck 2017}) 9... Qb6 {[%emt 0:03:29]} ({Black should play} 9... Nbd7 $14) 10. O-O-O {[%emt 0:01:35]} Qa5 {[%emt 0:04:51]} 11. dxe5 {[%emt 0:04:29]} dxe5 {[%emt 0:00:11]} (11... Qxe5 $142 12. Bf4 Qa5 13. Bxd6 Nbd7) 12. fxg6 {[%emt 0:04:32]} fxg6 {[%emt 0:00:07]} 13. Bc4 {[%emt 0:02:18]} Nbd7 {[%emt 0:02:56]} (13... Qb4 {is a better defense.}) 14. Bf7+ {[%emt 0:11:23]} Ke7 {[%emt 0:01:21]} 15. Bg5 {[%emt 0:09:17]} (15. Qf1 $18 {has better winning chances.} Rhf8 16. Bb3) 15... Rhf8 {[%emt 0:09:00]} (15... Rad8 $16 {keeps fighting.}) 16. Bc4 {[%emt 0:08:15]} h6 {[%emt 0:02:31]} (16... Qc5 {was called for.}) 17. Bd2 {[%emt 0:05:02]} ({Don't take} 17. Bh4 $6 g5 $18) 17... Qc5 {[%emt 0:02:18]} 18. Qe2 {[%emt 0:04:53]} Ne8 {[%emt 0:10:46]} 19. Na4 {[%emt 0:03:10]} Qf2 {[%emt 0:03:54]} 20. Qd3 {[%emt 0:02:13]} Qd4 {[%emt 0:14:18]} 21. Qa3+ {[%emt 0:04:20]} Nd6 {[%emt 0:01:56]} 22. Be1 {[%emt 0:06:55]} c5 {[%emt 0:05:06]} 23. Rxd4 {[%emt 0:00:41]} exd4 {[%emt 0:00:05]} 24. Bd5 {[%emt 0:03:21]} Rac8 {[%emt 0:01:13]} 25. Bg3 {[%emt 0:02:55]} b5 {[%emt 0:01:32] [#]} 26. Nxc5 $1 {[%emt 0:04:19]} Rxc5 {[%emt 0:00:19]} 27. Qa6 {[%emt 0:00:52]} Rf6 {[%emt 0:02:25] [#]} 28. e5 $1 {[%emt 0:00:57]} Rxd5 {[%emt 0:02:00]} 29. exf6+ {[%emt 0:00:22]} Bxf6 {[%emt 0:00:26]} 30. Re1+ {[%emt 0:00:55]} Ne5 {[%emt 0:00:42]} 31. Qxa7+ {[%emt 0:01:43]} Ke6 {[%emt 0:00:21]} 32. Qh7 {[%emt 0:02:24]} d3 {[%emt 0:01:43]} 33. Bxe5 $2 {[%emt 0:02:28]} ({White should try} 33. cxd3 $18 Ndf7 34. Qxg6) 33... d2+ {[%emt 0:00:55]} 34. Kd1 {[%emt 0:00:11]} dxe1=Q+ 35. Kxe1 {[%emt 0:00:06]} Rxe5+ {[%emt 0:00:40]} 36. Kd1 {[%emt 0:01:20]} Rd5+ {[%emt 0:00:12] Discovered Attack} 37. Ke1 {[%emt 0:00:08]} Bh4+ {[%emt 0:00:56]} 38. Kf1 {[%emt 0:01:24]} Rd1+ {[%emt 0:01:34]} 39. Ke2 {[%emt 0:00:05]} Re1+ {[%emt 0:00:06]} 40. Kf3 {[%emt 0:01:11]} Nf7 {[%emt 0:03:10]} 41. Qxg6+ {[%emt 0:30:54]} Ke7 {[%emt 0:31:38]} 42. Qb6 {[%emt 0:02:54]} Nd6 {[%emt 0:01:02]} 43. a4 {[%emt 0:00:00]} bxa4 {[%emt 0:00:00]} 44. Qa7+ {[%emt 0:00:00]} Kf6 $2 {[%emt 0:00:00]} (44... Ke6 $11 {and Black is okay.}) 45. Qd4+ {[%emt 0:00:00] Double Attack} Ke6 {[%emt 0:00:00]} 46. Qxh4 {[%emt 0:00:00]} Re3+ {[%emt 0:00:00]} 47. Kf2 {[%emt 0:00:00]} Re4 {[%emt 0:00:00]} 48. Qxh6+ {[%emt 0:00:00]} Kd5 {[%emt 0:00:00]} 49. Qd2+ {[%emt 0:00:00]} Rd4 {[%emt 0:00:00]} 50. Qa5+ {[%emt 0:00:00]} Kc6 {[%emt 0:00:00]} 51. Kf3 {[%emt 0:00:00]} Rc4 {[%emt 0:00:00]} 52. b3 {[%emt 0:00:00]} axb3 {[%emt 0:00:00]} 53. cxb3 {[%emt 0:00:00]} Rc5 {[%emt 0:00:00]} 54. Qa6+ {[%emt 0:00:00]} Kd5 {[%emt 0:00:00]} 55. b4 {[%emt 0:00:00]} Rb5 {[%emt 0:00:00]} 56. Qxb5+ {[%emt 0:00:00]} Nxb5 {[%emt 0:00:00]} 57. g4 $4 {[%emt 0:00:00]} (57. Ke3 Ke6 58. Kf4) 57... Kc4 $2 {[%emt 0:00:00]} (57... Ke5 $14) 58. g5 {[%emt 0:00:39]} Kxb4 {[%emt 0:00:00]} 59. g6 {[%emt 0:01:25]} Nd4+ {[%emt 0:00:00]} 60. Kg4 {[%emt 0:03:04]} Nc6 {[%emt 0:00:00]} 61. Kg5 {[%emt 0:00:36]} Ne7 {[%emt 0:00:00]} 62. Kf6 {[%emt 0:01:33]} Ng8+ {[%emt 0:00:00]} 63. Kg7 {[%emt 0:00:38]} Ne7 {[%emt 0:00:00]} 64. Kf7 {[%emt 0:00:15]} Nf5 {[%emt 0:00:00]} 65. g7 {[%emt 0:00:30]} Kc5 {[%emt 0:00:00]} 66. g8=Q {[%emt 0:00:21]} Nh6+ {[%emt 0:00:00]} 67. Kg7 {[%emt 0:00:09]} Nxg8 68. Kxg8 {[%emt 0:00:04]} Kd6 {[%emt 0:00:00]} 69. Kg7 {[%emt 0:00:19]} Ke6 {[%emt 0:00:00]} 70. h4 {[%emt 0:00:06]} Kf5 {[%emt 0:00:00]} 71. h5 {[%emt 0:00:12]} Kg5 {[%emt 0:00:00]} 72. h6 {[%emt 0:00:07]} 1-0

[Event "GER-ch Youth U14 2020"]
[Site "Willingen"]
[Date "2020.10.21"]
[Round "3.4"]
[White "Halabi, Ibrahim"]
[Black "Kort, Felix"]
[Result "1-0"]
[ECO "C50"]
[WhiteElo "1895"]
[BlackElo "1823"]
[Annotator "NA RC"]
[PlyCount "131"]
[EventDate "2020.10.20"]
[EventType "swiss"]
[EventRounds "7"]
[EventCountry "GER"]
[SourceTitle "playchess.com"]
[Source "ChessBase"]
[SourceQuality "1"]
[TimeControl "40/5400+30:1800+30"]

1. e4 {[%emt 0:00:00]} e5 {[%emt 0:00:00]} 2. Nf3 {[%emt 0:00:00]} Nc6 {[%emt 0:00:00]} 3. Bc4 {[%emt 0:00:00]} Bc5 {[%emt 0:00:00]} 4. d3 {[%emt 0:00:23]} Nf6 {[%emt 0:00:00]} 5. Nbd2 {[%emt 0:00:07]} O-O {[%emt 0:00:29]} 6. O-O {[%emt 0:00:39]} d6 7. c3 {[%emt 0:00:30]} a5 {[%emt 0:01:58] C54: Giuoco Piano: 4 c3 Nf6, main lines with 5 d4 and 5 d3.} 8. h3 {[%emt 0:00:44]} Be6 {[%emt 0:00:55]} 9. a4 {[%emt 0:06:36]} Ne7 {[%emt 0:05:55] [#]} 10. d4 $146 {[%emt 0:07:56]} ({Predecessor:} 10. Bxe6 fxe6 11. Qb3 Qc8 12. Re1 Nd7 13. Qxe6+ Rf7 14. d4 Ra6 15. Ng5 Qe8 16. Nxf7 Qxf7 17. Qxd7 {1-0 (29) Park,S (1793)-Faulks,R Batumi 2018}) 10... exd4 {[%emt 0:05:00]} 11. cxd4 {[%emt 0:01:07]} Bb4 {[%emt 0:01:11]} 12. Qc2 {[%emt 0:10:19]} Ng6 {[%emt 0:06:49]} 13. d5 {[%emt 0:07:25]} Bd7 {[%emt 0:02:10]} 14. Nb3 {[%emt 0:02:03]} Qe8 {[%emt 0:11:32]} 15. Nbd2 {[%emt 0:06:44]} Ne5 {[%emt 0:05:06]} ({Better is} 15... Qc8 $15 16. Nd4 Re8) 16. Nxe5 {[%emt 0:01:19]} Qxe5 {[%emt 0:02:18]} 17. Bd3 {[%emt 0:08:49]} Bc5 {[%emt 0:04:09]} 18. Nc4 $1 {[%emt 0:06:17]} Qh5 {[%emt 0:14:20]} 19. Be3 {[%emt 0:02:50]} Bxe3 {[%emt 0:02:45]} 20. Nxe3 {[%emt 0:00:44]} c6 {[%emt 0:06:34]} 21. Qb3 {[%emt 0:03:20]} Rab8 {[%emt 0:08:41]} 22. Qb6 {[%emt 0:07:33]} Rfc8 {[%emt 0:03:36]} ({Better is} 22... Rfe8 $11) 23. Qxa5 {[%emt 0:11:34]} b6 {[%emt 0:00:40]} 24. Qb4 {[%emt 0:02:04]} cxd5 {[%emt 0:02:06]} 25. exd5 {[%emt 0:02:11]} Rc5 {[%emt 0:02:49]} (25... Nxd5 $16 {might work better.} 26. Bxh7+ {[%mdl 64] Decoy} (26. Qxd6 Nxe3 27. fxe3 Be6 $16) 26... Kxh7 27. Qe4+ {[%mdl 64] Double Attack} Qg6 28. Qh4+ (28. Qxd5 Rc5 $14) 28... Qh6 29. Qxh6+ Kxh6) 26. Rfc1 {[%emt 0:04:27]} Nxd5 {[%emt 0:02:26]} 27. Rxc5 {[%emt 0:01:43]} (27. Nxd5 $16 Qxd5 28. Rd1) 27... dxc5 {[%emt 0:00:40]} 28. Qe4 {[%emt 0:03:50]} Nxe3 {[%emt 0:01:32]} 29. Qxe3 {[%emt 0:00:30]} Re8 {[%emt 0:02:29]} 30. Qf4 {[%emt 0:02:44]} Qe5 {[%emt 0:03:01]} 31. Qxe5 {[%emt 0:00:55]} Rxe5 {[%emt 0:00:02]} 32. a5 {[%emt 0:00:10]} b5 $2 {[%emt 0:01:34]} (32... bxa5 $11 33. Rxa5 g6) 33. a6 {[%emt 0:00:34]} Bc6 {[%emt 0:01:34]} 34. a7 {[%emt 0:01:08]} Ba8 {[%emt 0:01:10]} 35. Bxb5 {[%emt 0:00:30]} Kf8 {[%emt 0:02:46]} 36. Rd1 {[%emt 0:00:47]} Rd5 {[%emt 0:00:38]} 37. Re1 {[%emt 0:00:56]} Rd8 {[%emt 0:00:24]} 38. Rc1 {[%emt 0:02:34]} Rc8 {[%emt 0:00:24]} 39. b4 {[%emt 0:00:48]} Rc7 {[%emt 0:01:04]} 40. Re1 {[%emt 0:01:57]} Re7 {[%emt 0:00:20]} 41. Rxe7 {[%emt 0:31:42]} Kxe7 {[%emt 0:30:21]} 42. bxc5 {[%emt 0:00:10]} Kd8 {[%emt 0:00:19]} 43. f3 {[%emt 0:01:02]} Kc7 {[%emt 0:00:25]} 44. Bd3 {[%emt 0:00:19]} Bd5 {[%emt 0:00:00]} 45. Kf2 $18 {[%emt 0:00:00]} Kb7 {[%emt 0:00:00]} 46. Be4 {[%emt 0:00:00]} Bxe4 {[%emt 0:00:00]} 47. fxe4 {[%emt 0:00:00]} Kxa7 {[%emt 0:00:00]} 48. Ke3 {[%emt 0:00:00]} Kb7 {[%emt 0:00:00]} 49. Kd4 {[%emt 0:00:00]} Kc6 {[%emt 0:00:00]} 50. Kc4 {[%emt 0:00:00]} g6 {[%emt 0:00:00]} 51. g3 {[%emt 0:00:00]} f5 {[%emt 0:00:00]} 52. exf5 {[%emt 0:00:00]} gxf5 {[%emt 0:00:00]} 53. Kd4 {[%emt 0:00:00]} h5 {[%emt 0:00:00]} 54. h4 {[%emt 0:00:00]} Kd7 {[%emt 0:00:00]} 55. Ke5 {[%emt 0:00:00]} Kc6 {[%emt 0:00:00]} 56. Kxf5 {[%emt 0:00:00]} Kxc5 {[%emt 0:00:00]} 57. Kg5 {[%emt 0:00:00]} Kd6 58. Kxh5 {[%emt 0:00:00]} Ke7 {[%emt 0:00:00]} 59. g4 {[%emt 0:00:00]} Kf8 {[%emt 0:00:00]} 60. g5 {[%emt 0:00:00]} Kg8 {[%emt 0:00:00]} 61. g6 {[%emt 0:00:00]} Kg7 {[%emt 0:00:00]} 62. Kg5 {[%emt 0:00:00]} Kg8 {[%emt 0:00:00]} 63. h5 {[%emt 0:00:00]} Kg7 {[%emt 0:01:06]} 64. h6+ {[%emt 0:00:00]} Kf8 {[%emt 0:00:58]} 65. Kf6 {[%emt 0:00:00]} Kg8 {[%emt 0:00:10]} 66. h7+ {[%emt 0:00:00]} 1-0

[Event "GER-ch Youth U14 2020"]
[Site "Willingen"]
[Date "2020.10.21"]
[Round "3.7"]
[White "Bungarten, Jona"]
[Black "Hecht, Jonas Christian"]
[Result "0-1"]
[ECO "B21"]
[WhiteElo "1834"]
[BlackElo "1764"]
[Annotator "NA RC"]
[PlyCount "84"]
[EventDate "2020.10.20"]
[EventType "swiss"]
[EventRounds "7"]
[EventCountry "GER"]
[SourceTitle "playchess.com"]
[Source "ChessBase"]
[SourceQuality "1"]
[TimeControl "40/5400+30:1800+30"]

1. e4 {[%emt 0:00:00]} c5 {[%emt 0:00:00]} 2. d4 {[%emt 0:00:00]} cxd4 {[%emt 0:00:00]} 3. c3 {[%emt 0:00:00]} dxc3 {[%emt 0:00:00]} 4. Nxc3 {[%emt 0:00:00]} e6 {[%emt 0:00:00]} 5. Nf3 {[%emt 0:00:06]} Nc6 {[%emt 0:00:04]} 6. Bc4 {[%emt 0:00:07]} a6 {[%emt 0:00:08]} 7. O-O {[%emt 0:00:08]} Nge7 {[%emt 0:00:14]} 8. Bg5 {[%emt 0:00:07]} h6 {[%emt 0:00:05] is now more promising than 8...f6. B21: Sicilian: 2 f4 and Morra Gambit.} 9. Be3 {[%emt 0:00:05]} Ng6 {[%emt 0:00:11]} 10. Bb3 {[%emt 0:00:23]} Be7 {[%emt 0:00:53]} 11. Na4 {[%emt 0:03:30] [#]} O-O $146 {[%emt 0:02:58]} ({Predecessor:} 11... d6 12. Nb6 Rb8 13. Rc1 O-O 14. Ba4 Bd7 15. Nd4 Nge5 16. Nxd7 Qxd7 17. f4 b5 18. fxe5 Nxd4 19. Qxd4 bxa4 {0-1 (75) Mayerhofer,P (2160)-Schnider,G (2425) Austria 2019}) 12. Nb6 {[%emt 0:02:48]} Rb8 {[%emt 0:00:32]} 13. Qe2 {[%emt 0:01:47]} d6 {[%emt 0:04:36]} 14. Rfd1 {[%emt 0:01:22]} Bd7 {[%emt 0:02:04]} 15. Rac1 {[%emt 0:08:15]} Nge5 {[%emt 0:02:11]} 16. Nxe5 {[%emt 0:00:53]} Nxe5 {[%emt 0:00:22]} 17. f4 {[%emt 0:01:05]} Bb5 {[%emt 0:00:52]} 18. Qc2 {[%emt 0:04:36]} Nd7 {[%emt 0:06:37]} 19. Qf2 {[%emt 0:03:56]} Bc6 {[%emt 0:11:58]} 20. Nxd7 {[%emt 0:02:17]} Qxd7 {[%emt 0:00:38]} 21. e5 {[%emt 0:00:09]} d5 {[%emt 0:00:59]} 22. Bc2 {[%emt 0:00:22]} f5 {[%emt 0:06:44]} 23. exf6 $1 {[%emt 0:00:58]} Bxf6 {[%emt 0:02:12]} 24. Qg3 {[%emt 0:02:12]} Qe8 {[%emt 0:11:58]} 25. Ba7 {[%emt 0:04:45]} Rc8 {[%emt 0:03:49]} 26. Qd3 {[%emt 0:05:28]} g6 $1 {[%emt 0:03:50]} 27. Qg3 {[%emt 0:05:11]} Kh7 {[%emt 0:02:33]} 28. Bc5 {[%emt 0:07:00]} Rg8 {[%emt 0:01:22]} 29. Be3 {[%emt 0:06:01]} Bxb2 {[%emt 0:03:50]} 30. Rb1 {[%emt 0:00:12]} Bf6 {[%emt 0:00:39]} 31. Qh3 {[%emt 0:03:40]} Bg7 {[%emt 0:03:01]} 32. Re1 {[%emt 0:02:04]} Bb5 {[%emt 0:03:47]} 33. Bd1 {[%emt 0:01:58]} Rc3 {[%emt 0:03:27]} 34. Rb3 {[%emt 0:03:09]} Qc6 {[%emt 0:02:19]} 35. Qg4 {[%emt 0:01:24]} Rxb3 {[%emt 0:04:07]} 36. Bxb3 {[%emt 0:00:13]} Qc3 {[%emt 0:00:15]} 37. Bf2 {[%emt 0:00:58]} Bd7 {[%emt 0:04:11]} 38. Bxd5 $19 {[%emt 0:02:01]} (38. Qd1) 38... Bd4 {[%emt 0:02:24]} 39. Rf1 {[%emt 0:00:26]} Bxf2+ {[%emt 0:00:45]} 40. Rxf2 {[%emt 0:00:08]} Qa1+ {[%emt 0:00:02]} 41. Rf1 {[%emt 0:30:21]} Qd4+ {[%emt 0:30:06]} 42. Kh1 Qxd5 {[%emt 0:00:21]} 0-1